Cogmind - Beta 13 *** ADVENTURER MODE // 2024.04.01 @ 13:20:35 Player: TheFizz Result: Destroyed by as-24755 with Assembled Heavy Rifle Performance ------------- Evolutions (0) 0 Regions Visited (2) 400 Robots Destroyed (57) 285 Value Destroyed (934) 934 Prototype IDs (2) 40 Alien Tech Used (0) 0 Bonus (-56) -56 TOTAL SCORE: 1603 Bonus ------- Friendly Fire -56 Cogmind --------- Core Integrity 0/250 Matter 259/300 Energy 100/100 System Corruption 0% Temperature Cool (0) Movement Core (350) Ox6 Location -10/Mines Parts ------- > --- POWER (1) -------- (None) > --- PROPULSION (2) --- (None) > --- UTILITY (2) ------ Large Storage Unit > --- WEAPON (2) ------- (None) > --- INVENTORY (15) --- Aluminum Leg Aluminum Leg Large Storage Unit Huge Storage Unit High-capacity Matter Pod (38) High-capacity Matter Pod (0) High-capacity Matter Pod (0) Authchip [R/NC] Authchip [R/Combat] Authchip [Device] Authchip [Processor] Assault Rifle Grenade Launcher Peak State ------------ > --- POWER ------------ Ion Engine > --- PROPULSION ------- Aluminum Leg Aluminum Leg > --- UTILITY ---------- Improved Terrain Scanner Improved Terrain Scanner > --- WEAPON ----------- Assault Rifle Light Assault Rifle > --- INVENTORY -------- (None) [Rating: 11] Favorites ----------- Power Ion Engine Engine Ion Engine Propulsion Aluminum Leg Treads Light Treads Leg Aluminum Leg Utility Large Storage Unit Device Improved Terrain Scanner Storage Large Storage Unit Protection Light Armor Plating Weapon Assault Rifle Ballistic Gun Assault Rifle Launcher Grenade Launcher Build | -11 -10 -10 ------- Run | Yrd Mat Min Slots Evolved . | . . . Power . | . . . Propulsion . | . . . Utility . | . . . Weapon . | . . . Parts Attached 26 | 8 16 2 Power 4 | 2 2 . Engine 4 | 2 2 . Core . | . . . Reactor . | . . . Propulsion 6 | 2 4 . Treads 2 | . 2 . Leg 4 | 2 2 . Wheel . | . . . Hover . | . . . Flight . | . . . Utility 8 | 2 6 . Device 2 | 2 . . Storage 3 | . 3 . Processor . | . . . Hackware . | . . . Protection 3 | . 3 . Artifact . | . . . Weapon 8 | 2 4 2 Energy Gun . | . . . Energy Cannon . | . . . Ballistic Gun 6 | 2 3 1 Ballistic Cannon . | . . . Launcher 2 | . 1 1 Special Weapon . | . . . Impact Weapon . | . . . Slashing Weapon . | . . . Piercing Weapon . | . . . Special Melee Weapon . | . . . Unidentified Prototypes . | . . . Parts Lost 6 | . . 6 Power 1 | . . 1 Propulsion 2 | . . 2 Utility 1 | . . 1 Weapon 2 | . . 2 Highest Loss Streak 5 | . . 5 To Critical Strikes . | . . . Average Slot Usage (%) 97 | . 99 93 Engine 13 | . 13 13 Treads 17 | . 13 28 Leg 10 | . 14 . Device 2 | . 3 . Storage 12 | . 12 14 Protection 10 | . 11 8 Ballistic Gun 14 | . 14 14 Launcher 13 | . 13 14 Naked Turns . | . . . Heaviest Build 93 | 10 93 33 Greatest Support 40 | 20 40 40 Greatest Overweight (x) 6 | . 3 6 Average Overweight (x) . | . . . Largest Inventory Capacity 25 | 5 25 15 Average Capacity 11 | 5 13 15 Most Carried 13 | 2 11 13 Average Carried 6 | . 7 11 Final Capacity 15 | 5 15 15 Final Carried 13 | . 11 13 Class Distribution -------------------- 100% | Mutant Dominant Class ---------------- Mutant | -10/Materials Mutant | -10/Mines Resources | -11 -10 -10 ----------- Run | Yrd Mat Min Matter Collected 1215 | 313 556 346 Remotely . | . . . Salvage Created 1153 | 89 672 392 Parts 107 | 14 52 41 Haulers Intercepted 2 | . 2 . Recyclers Shooed 3 | . 1 2 Parts Field Recycled . | . . . Retrieved Matter . | . . . Parts Self-Destructed . | . . . Prevented . | . . . Kills | -11 -10 -10 ------- Run | Yrd Mat Min Combat Hostiles Destroyed 33 | 1 12 20 Guns 8 | 1 2 5 AOE 25 | . 10 15 Classes Destroyed 9 | 3 5 1 Worker 11 | 1 9 1 Builder 11 | . 7 4 Tunneler 5 | 3 . 2 Hauler 2 | . 2 . Recycler 2 | . 2 . Watcher 3 | . 3 . Swarmer 7 | . 3 4 Grunt 16 | 1 9 6 Assembled 10 | . . 10 Best Kill Streak 10 | 1 8 10 Combat Bots Only 10 | 1 3 10 Max Kills in Single Turn 3 | 1 3 3 Gunslinging . | . . . Exploded 3 | . 2 3 Melee . | . . . Uniques/NPCs Destroyed . | . . . Combat | -11 -10 -10 -------- Run | Yrd Mat Min Hostile Shots Fired 137 | 4 23 110 Missed 35 | . 3 32 Damage Taken 1064 | 32 204 828 Core 255 | . 27 228 Absorbed by Shields . | . . . Ignored by Resistances 316 | 11 63 242 Core Remaining (%) 100 | 100 . . Volleys Fired 152 | 12 80 60 Largest 2 | 2 1 2 Hottest 50 | 40 30 50 Shots Fired 166 | 19 80 67 Gun 118 | 19 44 55 Cannon . | . . . Launcher 48 | . 36 12 Special . | . . . Kinetic 118 | 19 44 55 Thermal . | . . . Explosive 48 | . 36 12 Electromagnetic . | . . . Robot Hit Streak 26 | 9 13 26 Robot Miss Streak 3 | 1 2 3 Penetration Max . | . . . Secondary Targets . | . . . Shots Hit Robots 114 | 17 43 54 Core Hits 102 | 7 50 45 Critical Kills . | . . . Critical Parts Destroyed . | . . . Critical Strikes . | . . . Melee Attacks . | . . . Impact . | . . . Slashing . | . . . Piercing . | . . . Sneak Attacks . | . . . Combat Hostiles . | . . . Follow-up Attacks . | . . . Damage Inflicted 3612 | 174 1861 1577 Guns 1205 | 174 456 575 Cannons . | . . . Explosions 2388 | . 1393 995 Melee . | . . . Ramming 19 | . 12 7 Kinetic 1205 | 174 456 575 Thermal 101 | . 101 . Explosive 2287 | . 1292 995 Electromagnetic . | . . . Impact . | . . . Slashing . | . . . Piercing . | . . . Highest Corruption . | . . . Average Corruption . | . . . Corruption Purged . | . . . Corruption Blocked . | . . . Overload Shots . | . . . Overflow Damage 110 | . 83 27 Projectiles . | . . . Explosions 110 | . 83 27 Melee . | . . . Knockbacks . | . . . Impact . | . . . Kinetic . | . . . Secondary . | . . . Self-Inflicted Damage 43 | . 24 19 Shots 2 | . 1 1 Rammed 3 | . 1 2 Targets Rammed 5 | . 2 3 Kicked 1 | . 1 . Crushed 1 | . . 1 Highest Temperature 30 | . 19 30 Average Temperature 8 | . 9 7 Received Heat Transfer 329 | 24 108 197 Siege Activations . | . . . Robots Corrupted . | . . . Combat Hostiles . | . . . Parts Fried . | . . . Impact Corruptions . | . . . Robots Melted . | . . . Combat Hostiles . | . . . Parts Melted . | . . . Heat Transferred 50 | . 50 . Parts Sabotaged . | . . . Parts Stolen . | . . . Parts Stripped . | . . . Power Chain Reactions . | . . . Alert | -11 -10 -10 ------- Run | Yrd Mat Min Peak Influence 377 | 25 377 158 Initial 8 | . 8 3 Average 64 | 9 71 113 Maximum Alert Level 1 | . 1 . Low Security (%) 95 | 100 91 100 Level 1 4 | . 8 . Level 2 . | . . . Level 3 . | . . . Level 4 . | . . . Level 5 . | . . . High Security . | . . . Max Security . | . . . Squads Dispatched 2 | . 2 . Investigation 2 | . 2 . Extermination . | . . . Reinforcement . | . . . Assault . | . . . Garrison . | . . . Intercept . | . . . Searches Triggered . | . . . Construction Impeded . | . . . Haulers Reinforced . | . . . Active Scanning Responses . | . . . Cargo Convoy Interrupts . | . . . Stealth | -11 -10 -10 --------- Run | Yrd Mat Min Distress Signals . | . . . Communications Jammed . | . . . Distress Signals . | . . . Times Spotted 49 | 1 16 32 Peak Tracking Total 18 | 1 3 18 Tactical Retreats 1 | . . 1 Traps | -11 -10 -10 ------- Run | Yrd Mat Min Traps Triggered 4 | . 4 . Indirectly . | . . . Trap Hack Attempts . | . . . Triggered . | . . . Disarmed 1 | . 1 . Reprogrammed . | . . . Reused . | . . . Traps Extracted . | . . . Installed . | . . . Triggered . | . . . Machines | -11 -10 -10 ---------- Run | Yrd Mat Min Machines Disabled 9 | . 9 . Max in Single Turn 2 | . 2 . Machines Repaired . | . . . Machines Dismantled . | . . . Machines Sabotaged . | . . . Overloaded Fab Kills . | . . . Hacking | -11 -10 -10 --------- Run | Yrd Mat Min Machines Accessed 9 | . 9 . Terminals 6 | . 6 . Fabricators . | . . . Repair Stations 1 | . 1 . Recycling Units 2 | . 2 . Scanalyzers . | . . . Garrison Access . | . . . Total Hacks 30 | . 30 . Successful 15 | . 15 . Failed 15 | . 15 . Catastrophic . | . . . Database Lockouts . | . . . Manual . | . . . Terminals 18 | . 18 . Fabricators . | . . . Repair Stations 3 | . 3 . Recycling Units 9 | . 9 . Scanalyzers . | . . . Garrison Access . | . . . Terminal Hacks 7 | . 7 . Record 1 | . 1 . Prototype ID Bank 1 | . 1 . Emergency Access Points 1 | . 1 . Unreport Threat 1 | . 1 . Disarm Traps 1 | . 1 . Hauler Manifests 2 | . 2 . Fabricator Hacks . | . . . Repair Station Hacks 1 | . 1 . Scan Component 1 | . 1 . Recycling Unit Hacks 7 | . 7 . Recycle Component 4 | . 4 . Process 2 | . 2 . Report Inventory 1 | . 1 . Scanalyzer . | . . . Garrison Access Hacks . | . . . Unauthorized Hacks . | . . . Terminals . | . . . Fabricators . | . . . Repair Stations . | . . . Recycling Units . | . . . Scanalyzers . | . . . Garrison Access . | . . . Data Cores Recovered . | . . . Used . | . . . Hacking Detections 8 | . 8 . Full Trace Events 5 | . 5 . Feedback Events . | . . . Feedback Blocked . | . . . Robot Schematics Acquired . | . . . Robots Built . | . . . Authchips . | . . . Time . | . . . Total Robot Build Rating . | . . . Part Schematics Acquired . | . . . Parts Built . | . . . Authchips . | . . . Time . | . . . Total Part Build Rating . | . . . Parts Repaired . | . . . Time . | . . . Parts Recycled 4 | . 4 . Recycled Matter 27 | . 27 . Retrieved Matter . | . . . Retrieved Components . | . . . Parts Scanalyzed . | . . . Part Schematics Acquired . | . . . Parts Damaged . | . . . Bothacking | -11 -10 -10 ------------ Run | Yrd Mat Min Used RIF Installer . | . . . Robots Hacked . | . . . Non-combat . | . . . Combat . | . . . Robot Hacks Applied . | . . . Relay Couplers Released . | . . . Fabnet Peak Effective % . | . . . Robots Rewired . | . . . Allies Hacked . | . . . Hacks Repelled . | . . . Allies | -11 -10 -10 -------- Run | Yrd Mat Min Total Allies . | . . . Largest Group . | . . . Highest-Rated Group . | . . . Highest-Rated Ally . | . . . Total Orders . | . . . Ally Attacks . | . . . Total Damage . | . . . Kills . | . . . Allies Corrupted . | . . . Allies Melted . | . . . Intel | -11 -10 -10 ------- Run | Yrd Mat Min Robot Analysis Total . | . . . Derelict Logs Recovered 1 | . . 1 Drone Launches . | . . . Drone Recoveries . | . . . Exploration | -11 -10 -10 ------------- Run | Yrd Mat Min Turns Passed 4126 | 1020 2264 842 Spaces Moved 1877 | 240 1205 432 Core 33 | 32 . 1 Treads 1054 | . 623 431 Legs 790 | 208 582 . Wheels . | . . . Hover . | . . . Flight . | . . . Fastest Speed 50 | 50 120 160 Average Speed 156 | 110 164 160 Slowest Speed 350 | 120 330 350 Overloaded Moves . | . . . Propulsion Burnouts . | . . . Robots Hopped . | . . . Cave-ins Triggered . | . . . Exploration Rate (%) 61 | 22 96 67 Regions Visited 2 Branch Regions 1 Pre-discovered Areas 1 | . . 1 Known Exits Taken . | . . . Unknown Exits Taken 2 | 1 1 . Scrap Searched . | . . . Spaces Dug 7 | . 7 . Terrain Destroyed 263 | . 205 58 Melee . | . . . Projectile . | . . . AOE 263 | . 205 58 Terrain Rammed . | . . . Walls Destroyed . | . . . Machines Disabled . | . . . Actions | -11 -10 -10 --------- Run | Yrd Mat Min Total 2894 | 977 1404 513 Wait 778 | 709 55 14 Move 1875 | 239 1204 432 Hop . | . . . Pick Up 43 | 8 33 2 Fast Attach . | . . . Attach 13 | 7 6 . Detach 1 | . 1 . Swap 13 | 1 10 2 Drop 14 | 1 13 . Fire 152 | 12 80 60 Melee . | . . . Ram . | . . . Kick 1 | . 1 . Crush 4 | . 1 3 Escape Stasis . | . . . Rewire . | . . . Trap . | . . . Miscellaneous . | . . . Route ------- -11/Scrapyard -10/Materials (discovered 5 exits: [*Mat x3] / [*Min x2]) -10/Mines (discovered 1 exit: [*Mat]) History --------- Turn | Location | Event 2 | -11/Scrapyard | Met Revision 17 61 | -11/Scrapyard | Discovered new exit (range 8) 1021 | -11/Scrapyard | Entered Materials 1022 | -10/Materials | Build established: Mutant 1413 | -10/Materials | Discovered new exit (range 15) 1901 | -10/Materials | Discovered new exit (range 4) 2267 | -10/Materials | Discovered new exit (range 15) 2488 | -10/Materials | Discovered new exit (range 13) 2515 | -10/Materials | Discovered new exit (range 12) 3285 | -10/Materials | Entered Mines 3547 | -10/Mines | Learned location of Storage (-8) 3627 | -10/Mines | YI-UF0 nonchalantly dropped a Grenade Launcher on the ground 3692 | -10/Mines | Discovered new exit (range 6) 4094 | -10/Mines | Assembled infested the area 4099 | -10/Mines | Assisted by a Guerilla fighting off Assembled 4116 | -10/Mines | Core integrity fell below 50% 4127 | -10/Mines | Core integrity fell below 20% 4127 | -10/Mines | Destroyed by as-24755 with Assembled Heavy Rifle Last Messages --------------- as-73268 destroyed. as-96036 destroyed. as-76475 destroyed. Destroyed Asb. Hover Unit. as-74383 destroyed. QZ-866(h) destroyed. as-54990 destroyed. as-60297 destroyed. Ion Engine destroyed. as-97766 destroyed. as-49900 destroyed. as-11907 suffers critical hit (Destroy). as-11907 destroyed. as-49222 destroyed. as-89803 destroyed. Lgt. Treads destroyed. Destroyed Lgt. Treads. Grenade Launcher destroyed. Lgt. Treads destroyed. Lgt. Assault Rifle destroyed. Map ----- +----------------------------------------------------+ | | | | | | | | | | | | | | | | | | | | | | | ???????????????????????????????????????????? | | ???????????????????????????????????????????? | | ???????????????????????????????????????????? | | ???????????????????????????????????????????? | | ???????????????????????????????????????????? | | ???????????????????????????????????????????? | | ???????????????????????????????????????????? | | ???????????????????????????????????####????? | | ??????????????????????????????????## ##?### | | ????????????????????####??????????# ## | | ???????????????????## ##?????????# | | ?????????"????????## ##???????## | | ?????????? ?????## #???????# | | ?????????""" #### #???????# | | ?????????""" @ #????????# """ | | ?????????""" ##????????# """ | | ?????? ## a ########## """ # | | ?????######???# % ] #? | | ??????????????## % ## | | ?????????????? = % ####### ### | | ????????????? * #?????# ## ## | | ????????????# % #?????# #### | | ????????????#a ##?????##### ###??# | | ???????????# a ###?????###### ###### | | ???????????# a a ##???????# | | ??????????# a a a ?????????# #### | | ????????? a #?????????# #??### #### | | ?????????? #??????????# #????# #??## | | ?????????? #???????????# #????# #???## | | ???????????? ????????????# #????# #???## | | ?????????????? ?????????????# #????# ##### | | ?????????????????????????????# #????# | | ??????????????????????????##?# #????######## | | ???????????????????????####### #???????????# | | ???????????????????????##|!! #???????????? | | ???????????????????????## ######???????????? | | ???????????????????????#!|=#???????????????? | | ???????????????????????#!!*#???????????????? | | ???????????????????????##*=#???????????????? | +----------------------------------------------------+ Best States ------------- Heat Dissipation 25 Energy Generation 10 Energy Capacity 250 Matter Stores 300 Matter Capacity 300 Sight Range 16 Terrain Scan Range 16 Terrain Scan Density 10 Armor Coverage 150 Resistance: KI 20 Resistance: TH 20 Resistance: EX 20 Resistance: EM 20 Resistance: I 20 Resistance: S 20 Resistance: P 20 Evasion (%) 55 Recoil Reduction 2 Offensive Hacking 10 Authchip Count 4 Item Schematics ----------------- None Robot Schematics ------------------ None Fabricated ------------ Nothing Alien Tech Used ----------------- None Achievements -------------- Everything Is Under Control Challenges ------------ None Game ------ Seed LauncherConstructExoskeleton Manual? 0 Play Time 00:37:20 Cumulative 2.0 hours Start 2024.04.01 @ 12:01:33 End 2024.04.01 @ 13:20:35 Sessions 1 Manual Loads 0 Difficulty Adventurer Special Mode None Game No. 2 Rogue 0 Adventurer 2 Explorer 0 Win Type - Total 0 Types 0/0/0/0/0/0/0/0/0 Lore% 0 Gallery% 3 Achievement% 4 Wizard Run 0 Options --------- Layout 1 ASCII 0 Keyboard 0 Movement Mouse Keybinds 0 Fullscreen 2 Font 24/Proggy Map View 50x35 Zoom Use 0% Tactical HUD 0 Map Filters NONE Filters NONE Steam 1 RUN: eac1ffb5-1616-41e8-814a-54fb61cc410d